bitfinex-derivatives/quotes_BNBF0:USTF0_20250708
["timestamp","ask_amount","ask_price","bid_price","bid_amount"]
[1751994283848,1.69810597,659.18,658.39,2.27508271]
[1751994284049,1.69810597,659.17,658.39,2.27508271]
[1751994285446,1.69810597,659.17,658.4,2.27508271]
[1751994286548,1.69810597,659.17,658.41,2.27508271]
[1751994287351,1.69810597,659.17,658.42,2.27508271]
[1751994287854,1.69810597,659.16,658.43,2.27508271]
[1751994288453,1.69810597,659.16,658.44,2.27508271]
[1751994289553,1.69810597,659.16,658.45,2.27508271]
[1751994290455,1.69810597,659.16,658.46,2.27508271]
[1751994291053,1.69810597,659.16,658.47,2.459]
[1751994291460,1.69810597,659.16,658.47,4.73408271]
[1751994292458,1.69810597,659.15,658.47,4.73408271]
[1751994292658,1.69810597,659.21,658.53,2.27508271]
[1751994293359,1.69810597,659.2,658.54,2.27508271]
[1751994295358,1.69810597,659.19,658.55,2.27508271]
[1751994296164,1.69810597,659.18,658.54,2.27508271]
[1751994296467,1.69810597,659.17,658.55,2.27508271]
[1751994296963,1.69810597,659.19,658.55,2.27508271]
[1751994297263,1.69810597,659.19,658.51,2.27508271]
[1751994297559,1.69810597,659.18,658.52,2.27508271]
[1751994297960,1.69810597,659.18,658.51,2.27508271]
[1751994298260,1.69810597,659.14,658.48,2.27508271]
[1751994298459,1.69810597,659.14,658.47,2.459]
[1751994298460,1.69810597,659.14,658.49,2.27508271]
[1751994299165,1.69810597,659.13,658.49,2.27508271]
[1751994299367,1.69810597,659.12,658.5,2.27508271]
[1751994299666,1.69810597,659.11,658.5,2.27508271]
[1751994300365,1.69810597,659.12,658.5,2.27508271]
[1751994301564,1.69810597,659.12,658.49,2.27508271]
[1751994301867,1.69810597,659.11,658.5,2.27508271]
[1751994302065,1.69810597,659.12,658.5,2.27508271]
[1751994302464,1.69810597,659.11,658.51,2.27508271]
[1751994302667,1.69810597,659.1,658.51,2.27508271]
[1751994302862,1.69810597,659.1,658.47,2.459]
[1751994302863,1.69810597,659.05,658.47,2.459]
[1751994303068,1.70421002,659.12,658.47,2.459]
[1751994303268,1.70421002,659.09,658.47,2.459]
[1751994303469,1.70421002,659.08,658.47,2.459]
[1751994303870,1.70421002,659.07,658.47,2.459]
[1751994304664,1.70421002,659.16,658.47,2.459]
[1751994304867,1.70421002,659.21,658.48,2.27508271]
[1751994305070,1.70421002,659.31,658.58,2.27508271]
[1751994305266,1.70421002,659.36,658.55,2.27508271]
[1751994305565,1.70421002,659.35,658.55,2.27508271]
[1751994305767,1.70421002,659.35,658.47,2.459]
[1751994305768,1.70421002,659.31,658.51,2.27508271]
[1751994306267,1.70421002,659.31,658.5,2.27508271]
[1751994306571,1.70421002,659.32,658.5,2.27508271]
[1751994306973,1.70421002,659.32,658.52,2.27508271]
[1751994307569,1.70421002,659.31,658.56,2.27508271]
[1751994307777,1.70421002,659.29,658.65,2.27508271]
[1751994308375,1.70421002,659.31,658.62,2.27508271]
[1751994308875,1.70421002,659.32,658.61,2.27508271]
[1751994309470,2.27060638,659.45,658.61,2.27508271]
[1751994309676,3.40590957,659.59,658.6,2.27508271]
[1751994309677,1.7012291,659.32,658.6,2.27508271]
[1751994310077,1.7012291,659.34,658.57,2.27508271]
[1751994310281,1.7012291,659.34,658.56,2.27508271]
[1751994311178,1.7012291,659.37,658.59,2.27508271]
[1751994311381,1.7012291,659.38,658.58,2.27508271]
[1751994311774,1.7012291,659.41,658.62,2.27508271]
[1751994312381,1.7012291,659.48,658.52,2.27508271]
[1751994312580,1.7012291,659.47,658.53,2.27508271]
[1751994312776,1.7012291,659.54,658.6,2.27508271]
[1751994313379,1.7012291,659.62,658.65,2.27508271]
[1751994313577,1.7012291,659.62,658.64,2.27508271]
[1751994313780,1.7012291,659.61,658.7,2.27508271]
[1751994314481,1.7012291,659.62,658.67,2.27508271]
[1751994315380,1.7012291,659.62,658.5,3.407691]
[1751994315381,1.7012291,659.62,658.64,2.27508271]
[1751994315881,2.27060638,659.79,658.64,2.27508271]
[1751994316075,1.69697779,659.62,658.64,2.27508271]
[1751994316276,1.69697779,659.63,658.62,2.27508271]
[1751994317077,1.69697779,659.62,658.64,2.27508271]
[1751994317482,1.69697779,659.61,658.64,2.27508271]
[1751994317981,1.69697779,659.6,658.65,2.27508271]
[1751994318179,1.69697779,659.72,658.75,2.27508271]
[1751994318383,1.69697779,659.73,658.74,2.27508271]
[1751994318679,1.69697779,659.73,658.6,3.407691]
[1751994318680,1.69697779,659.72,658.73,2.27508271]
[1751994318878,1.69697779,659.71,658.73,2.27508271]
[1751994319280,1.69697779,659.67,658.54,2.27508271]
[1751994319480,1.69697779,659.64,658.51,2.27508271]
[1751994320278,1.69697779,659.65,658.5,2.27508271]
[1751994321078,1.69697779,659.65,658.47,2.459]
[1751994321079,1.69697779,659.65,658.57,0.26392028]
[1751994322683,0.26392028,659.84,658.57,0.26392028]
[1751994322684,1.69697779,659.64,658.57,0.26392028]
[1751994322984,1.69697779,659.63,658.57,0.26392028]
[1751994323386,1.69697779,659.64,658.57,0.26392028]
[1751994323581,1.69697779,659.63,658.57,0.26392028]
[1751994323781,1.69697779,659.61,658.57,0.26392028]
[1751994324682,1.69697779,659.65,658.57,0.26392028]
[1751994326389,1.69697779,659.67,658.57,0.26392028]
[1751994326589,0.26392028,659.84,658.57,0.26392028]
[1751994326590,1.69697779,659.65,658.57,0.26392028]
[1751994326889,1.69697779,659.65,658.58,1.847]
[1751994328586,1.69697779,659.6,658.58,1.847]
[1751994328990,1.69697779,659.59,658.58,1.847]
[1751994329189,1.69697779,659.58,658.58,1.847]
[1751994329386,1.69247378,659.58,658.58,1.847]
[1751994331388,1.69247378,659.59,658.58,1.847]
[1751994332393,1.69247378,659.58,658.58,1.847]
[1751994332798,1.69247378,659.69,658.65,2.27508271]
[1751994334399,1.69247378,659.7,658.62,2.27508271]
[1751994335298,1.69247378,659.88,658.59,2.27508271]
[1751994335501,0.26387125,660.0,658.6,2.27508271]
[1751994335502,1.69247378,659.89,658.6,2.27508271]
[1751994336101,1.69247378,659.89,658.61,2.27508271]
[1751994336501,1.69247378,659.89,658.6,2.27508271]
[1751994337298,1.69247378,659.89,658.59,2.27508271]
[1751994339204,1.69247378,659.87,658.64,2.27508271]
[1751994339703,1.69247378,659.93,658.69,2.27508271]
[1751994340002,1.69247378,659.93,658.68,2.27508271]
[1751994340203,1.69247378,659.91,658.72,2.27508271]
[1751994340400,1.69247378,659.89,658.76,2.27508271]
[1751994341204,1.69247378,659.9,658.74,2.27508271]
[1751994341504,1.69247378,659.9,658.73,2.27508271]
[1751994342706,1.69247378,659.79,658.58,4.12208271]
[1751994342901,1.69247378,659.77,658.58,1.847]
[1751994343101,1.69247378,659.73,658.58,4.12208271]
[1751994343302,1.69247378,659.7,658.58,1.847]
[1751994345707,1.69247378,659.69,658.58,1.847]
[1751994346007,1.69247378,659.86,658.58,1.847]
[1751994348505,1.69247378,659.85,658.58,1.847]
[1751994349002,1.69247378,659.82,658.64,2.27508271]
[1751994350304,1.69247378,659.82,658.63,2.27508271]
[1751994350507,1.69247378,659.82,658.66,2.27508271]
[1751994351307,1.69247378,659.81,658.68,2.27508271]
[1751994352009,1.69247378,659.8,658.69,2.27508271]
[1751994352803,1.69247378,659.82,658.7,2.27508271]
[1751994353206,1.69247378,659.82,658.57,3.67161128]
[1751994353207,1.69247378,659.82,658.71,4.53008271]
[1751994353906,1.69247378,659.82,658.71,2.255]
[1751994354509,1.69247378,659.82,658.71,4.53008271]
[1751994355304,2.27060638,659.96,658.71,4.53008271]
[1751994355512,0.26384324,660.08,658.71,2.255]
[1751994355910,1.69056903,659.84,658.73,2.23941662]
[1751994356511,1.69056903,659.88,658.79,2.23941662]
[1751994357209,1.69056903,659.89,658.77,2.23941662]
[1751994357909,1.69056903,659.9,658.78,2.23941662]
[1751994358505,1.69056903,659.9,658.79,2.23941662]
[1751994358905,1.69056903,659.89,658.79,2.23941662]
[1751994359209,1.69056903,659.9,658.79,2.23941662]
[1751994359406,1.69056903,659.89,658.81,2.23941662]
[1751994360805,1.69056903,659.88,658.81,2.23941662]
[1751994361311,1.69056903,659.88,658.83,2.23941662]
[1751994361511,1.69056903,659.88,658.82,2.23941662]
[1751994362511,1.69056903,659.87,658.86,2.23941662]
[1751994362811,1.69056903,659.89,658.89,2.23941662]
[1751994363009,1.69056903,659.89,658.9,2.23941662]
[1751994363213,1.69056903,659.9,658.91,2.23941662]
[1751994363412,1.69056903,659.88,658.92,2.23941662]
[1751994363606,1.69056903,659.89,658.91,2.23941662]
[1751994364414,1.69056903,659.88,658.92,2.23941662]
[1751994365113,1.69056903,659.88,658.91,2.23941662]
[1751994365410,1.69056903,659.88,658.92,2.23941662]
[1751994365612,1.69056903,659.89,658.92,2.23941662]
[1751994366013,1.69056903,659.88,658.92,2.23941662]
[1751994366313,1.69056903,659.89,658.94,2.23941662]
[1751994366609,1.69056903,659.89,658.93,2.23941662]
[1751994366809,1.69056903,659.89,658.92,2.23941662]
[1751994367012,1.69056903,659.88,658.94,2.23941662]
[1751994367213,1.69056903,659.88,658.95,2.23941662]
[1751994368313,1.69056903,659.88,658.96,2.23941662]
[1751994369310,1.69056903,659.88,658.97,2.23941662]
[1751994369910,1.69056903,659.88,658.96,2.23941662]
[1751994370114,1.69056903,659.88,658.97,2.23941662]
[1751994370311,1.69056903,659.88,658.98,2.23941662]
[1751994371416,1.69056903,659.88,658.99,2.23941662]
[1751994371816,1.69056903,659.89,658.99,2.23941662]
[1751994372412,1.69056903,659.89,659.0,2.23941662]
[1751994372817,1.69056903,659.81,658.92,2.23941662]
[1751994373312,1.69056903,659.81,658.91,2.23941662]
[1751994373511,1.69056903,659.81,658.92,2.23941662]
[1751994373713,1.69056903,659.8,658.93,2.23941662]
[1751994373912,1.69056903,659.81,658.91,2.23941662]
[1751994376014,1.69056903,659.8,658.92,2.23941662]
[1751994376415,1.69056903,659.8,658.91,2.23941662]
[1751994376719,1.69056903,659.81,658.89,2.23941662]
[1751994377814,1.69056903,659.81,658.88,2.23941662]
[1751994378019,1.69056903,659.83,658.87,2.23941662]
[1751994378215,1.69056903,659.82,658.87,2.23941662]
[1751994378520,1.69056903,659.83,658.87,2.23941662]
[1751994379414,1.69056903,659.83,658.86,2.23941662]
[1751994379820,1.69056903,659.83,658.87,2.23941662]
[1751994380120,1.69056903,659.82,658.87,2.23941662]
[1751994382721,1.69056903,659.82,658.93,2.23941662]
[1751994383017,1.69056903,659.88,658.93,2.23941662]
[1751994383720,1.69056903,659.87,658.94,2.23941662]
[1751994384021,1.69056903,659.87,658.94,4.11041662]
[1751994385220,1.69056903,659.87,658.95,2.23941662]
[1751994385723,1.69056903,659.88,658.95,2.23941662]
[1751994386323,1.69056903,659.86,658.99,2.23941662]
[1751994387120,1.69056903,659.87,658.97,2.23941662]
[1751994387318,1.69056903,659.86,658.98,2.23941662]
[1751994387823,1.69056903,659.85,659.01,2.23941662]
[1751994388323,1.69056903,659.95,659.08,2.23941662]
[1751994389319,1.69056903,659.96,659.1,2.23941662]
[1751994389719,1.69056903,659.96,659.09,2.23941662]
[1751994390219,1.69056903,659.96,659.11,2.23941662]
[1751994391321,1.69056903,659.96,659.1,2.23941662]
[1751994391520,1.69056903,659.96,659.12,2.23941662]
[1751994391721,1.69056903,659.96,659.11,2.23941662]
[1751994392425,1.69056903,659.96,658.94,1.871]
[1751994392426,1.69056903,659.96,659.13,2.23941662]
[1751994392825,1.69056903,659.93,659.1,2.23941662]
[1751994393322,1.69056903,659.93,659.11,2.23941662]
[1751994394323,1.69056903,659.93,659.13,2.23941662]
[1751994395327,1.69056903,659.93,659.12,2.23941662]
[1751994395530,1.69056903,659.92,659.13,2.23941662]
[1751994396325,1.69056903,659.92,659.14,2.23941662]
[1751994397126,1.69056903,659.93,659.14,2.23941662]
[1751994397329,1.69056903,659.93,659.15,2.23941662]
[1751994397830,1.69056903,659.92,659.14,2.23941662]
[1751994398126,1.69056903,659.92,659.16,2.23941662]
[1751994398325,1.69056903,659.91,659.16,2.23941662]
[1751994398525,1.69056903,659.92,659.15,2.23941662]
[1751994399330,1.69056903,659.91,659.15,2.23941662]
[1751994401533,1.69056903,659.91,658.94,1.871]
[1751994401534,1.69056903,659.9,659.17,2.23941662]
[1751994402833,1.69056903,659.89,659.15,2.23941662]
[1751994403336,1.69056903,659.89,659.16,2.23941662]
[1751994404338,1.69056903,659.88,659.17,2.23941662]
[1751994405138,1.69056903,659.88,659.18,2.23941662]
[1751994405339,1.69056903,659.87,659.19,2.23941662]
[1751994407342,1.69056903,659.87,658.94,1.871]
[1751994407343,1.69056903,659.89,659.16,2.23941662]
[1751994407938,1.69056903,659.9,659.13,2.23941662]
[1751994409144,1.69056903,659.9,659.14,2.23941662]
[1751994409445,1.69056903,659.89,659.14,2.23941662]
[1751994411551,1.69056903,659.89,659.15,2.23941662]
[1751994412751,1.69056903,659.97,659.23,2.23941662]
[1751994413149,1.69056903,660.0,659.14,2.23941662]
[1751994413452,1.69056903,660.0,659.15,2.23941662]
[1751994414452,1.69056903,660.01,659.13,2.23941662]
[1751994414750,1.69056903,660.08,658.96,2.23941662]
[1751994414953,1.69056903,660.13,659.02,2.23941662]
[1751994415148,1.69056903,660.13,659.01,2.23941662]
[1751994415347,1.69056903,660.13,658.94,1.871]
[1751994415348,1.69056903,660.13,659.02,2.23941662]
[1751994415547,1.69056903,660.13,659.01,2.23941662]
[1751994415751,1.69056903,660.13,659.02,2.23941662]
[1751994415951,1.69056903,660.13,659.01,2.23941662]
[1751994418651,1.69056903,660.12,659.05,2.23941662]
[1751994419153,1.69056903,660.07,659.28,2.23941662]
[1751994419351,1.69056903,660.07,659.13,3.35912493]
[1751994419352,1.69056903,660.07,659.29,2.23941662]
[1751994420057,1.69056903,660.06,659.3,2.23941662]
[1751994420353,1.69056903,660.07,659.29,2.23941662]
[1751994420558,1.69056903,660.04,659.35,2.23941662]
[1751994421253,1.69056903,660.08,659.4,2.23941662]
[1751994421459,1.69056903,660.09,659.39,2.23941662]
[1751994421954,1.69056903,660.1,659.41,2.23941662]
[1751994422353,1.69056903,660.11,659.4,2.23941662]
[1751994422953,1.69056903,660.02,659.32,2.23941662]
[1751994423354,1.69056903,660.04,659.32,2.23941662]
[1751994424953,1.69056903,660.04,659.31,2.23941662]
[1751994425557,1.69056903,660.05,659.31,2.23941662]
[1751994426253,1.69056903,660.04,659.31,2.23941662]
[1751994426456,1.69056903,660.05,659.31,2.23941662]
[1751994428358,1.69056903,660.05,659.3,2.23941662]
[1751994429455,1.69056903,660.06,659.3,2.23941662]
[1751994429654,1.69056903,660.05,659.3,2.23941662]
[1751994429960,1.69056903,660.05,659.31,2.23941662]
[1751994430360,1.69056903,660.05,659.3,2.23941662]
[1751994431156,2.25409204,660.18,659.29,2.23941662]
[1751994431461,1.69717934,660.06,659.27,2.23941662]
[1751994431658,1.69717934,660.06,659.28,2.23941662]
[1751994431961,1.69717934,660.06,659.27,2.23941662]
[1751994432960,1.69717934,660.09,659.29,2.23941662]
[1751994434962,1.69717934,660.09,659.3,2.219]
[1751994436264,1.69717934,660.1,659.3,2.219]
[1751994439763,1.69717934,660.09,659.3,2.219]
[1751994440464,1.69717934,660.09,659.3,4.45841662]
[1751994441164,1.69717934,660.08,659.32,2.23941662]
[1751994442465,1.69717934,660.12,659.3,4.45841662]
[1751994445769,1.69717934,660.12,659.31,2.23941662]
[1751994445966,1.69717934,660.11,659.32,2.23941662]
[1751994447269,1.69717934,660.12,659.31,2.23941662]
[1751994447566,1.69717934,660.11,659.31,2.23941662]
[1751994448167,1.69717934,660.11,659.3,4.45841662]
[1751994448565,1.69717934,660.16,659.3,2.219]
[1751994449468,1.69717934,660.17,659.3,2.219]
[1751994450972,1.69717934,660.16,659.3,2.219]
[1751994451172,1.69717934,660.17,659.3,2.219]
[1751994452371,1.69717934,660.16,659.3,2.219]
[1751994452772,1.69717934,660.15,659.3,2.219]
[1751994454672,1.69717934,660.16,659.3,2.219]
[1751994456569,1.69717934,660.15,659.3,2.219]
[1751994458470,1.69717934,660.11,659.31,2.23941662]
[1751994458669,1.69717934,660.12,659.3,4.45841662]
[1751994458873,1.69717934,660.11,659.32,2.23941662]
[1751994461076,1.69717934,660.1,659.32,2.23941662]
[1751994461370,1.69717934,660.1,659.33,2.23941662]
[1751994461875,1.69717934,660.1,659.32,2.23941662]
[1751994462571,1.69717934,660.1,659.33,2.23941662]
[1751994462874,1.69717934,660.17,659.42,2.23941662]
[1751994463471,1.69717934,660.16,659.42,2.23941662]
[1751994463774,1.69717934,660.16,659.43,2.23941662]
[1751994465076,1.69717934,660.14,659.48,2.23941662]
[1751994465374,1.69717934,660.13,659.48,2.23941662]
[1751994466576,1.69717934,660.15,659.45,2.23941662]
[1751994467372,1.69717934,660.14,659.45,2.23941662]
[1751994468671,1.69717934,660.14,659.46,2.23941662]
[1751994469375,1.69717934,660.13,659.47,2.23941662]
[1751994470474,1.69717934,660.12,659.48,2.23941662]
[1751994471274,1.69717934,660.19,659.33,2.23941662]
[1751994471480,1.69717934,660.19,659.32,2.23941662]
[1751994471777,3.38113806,660.56,659.35,2.23941662]
[1751994471778,1.69717934,660.35,659.35,2.23941662]
[1751994472277,1.69717934,660.34,659.38,2.23941662]
[1751994472474,1.69717934,660.34,659.39,2.23941662]
[1751994472677,1.69717934,660.35,659.39,2.23941662]
[1751994472877,1.69717934,660.28,659.33,2.23941662]
[1751994473277,1.69717934,660.29,659.33,2.23941662]
[1751994473575,1.69717934,660.28,659.35,2.23941662]
[1751994474976,1.69717934,660.28,659.36,2.23941662]
[1751994475277,2.25409204,660.48,659.3,2.219]
[1751994475278,1.69717934,660.29,659.35,2.23941662]
[1751994475476,1.69717934,660.28,659.35,2.23941662]
[1751994475681,1.69717934,660.28,659.36,2.23941662]
[1751994475882,1.69717934,660.28,659.53,2.23941662]
[1751994476079,1.69717934,660.29,659.55,2.23941662]
[1751994476278,3.38113806,660.58,659.3,2.219]
[1751994476279,1.69717934,660.32,659.6,2.23941662]
[1751994476582,1.69717934,660.41,659.64,2.23941662]
[1751994477082,1.69717934,660.45,659.55,2.23941662]
[1751994477384,1.69717934,660.46,659.54,2.23941662]
[1751994478384,1.69717934,660.47,659.53,2.23941662]
[1751994478883,1.69717934,660.47,659.54,2.23941662]
[1751994479379,1.69717934,660.47,659.3,2.219]
[1751994479380,1.69717934,660.47,659.52,2.23941662]
[1751994479578,1.69717934,660.47,659.35,3.35912493]
[1751994479579,1.69717934,660.47,659.53,2.23941662]
[1751994480685,1.69717934,660.47,659.54,2.23941662]
[1751994480885,1.69717934,660.41,659.69,2.23941662]
[1751994481282,1.69717934,660.41,659.67,2.23941662]
[1751994481981,1.69717934,660.41,659.66,2.23941662]
[1751994482180,1.69717934,660.42,659.65,2.23941662]
[1751994482884,2.25409204,660.5,659.62,2.23941662]
[1751994483182,1.69531626,660.39,659.66,2.689]
[1751994484185,1.69531626,660.4,659.66,2.689]
[1751994484381,1.69531626,660.42,659.66,2.689]
[1751994485185,1.69531626,660.43,659.66,2.689]
[1751994486385,1.69531626,660.6,659.66,2.689]
[1751994487186,1.69531626,660.61,659.66,2.689]
[1751994487483,1.69531626,660.6,659.66,2.689]
[1751994487881,1.69531626,660.61,659.66,2.689]
[1751994489586,1.69531626,660.6,659.66,2.689]
[1751994490487,1.69531626,660.53,659.66,2.689]
[1751994491186,1.69531626,660.54,659.66,2.689]
[1751994491482,1.69531626,660.42,659.66,2.689]
[1751994491683,1.69531626,660.36,659.66,2.689]
[1751994492383,1.69531626,660.35,659.66,2.689]
[1751994492888,1.69531626,660.34,659.66,2.689]
[1751994493087,1.69531626,660.35,659.66,2.689]
[1751994493388,1.69531626,660.34,659.66,2.689]
[1751994493789,1.69531626,660.33,659.66,2.689]
[1751994494885,1.69531626,660.36,659.66,2.689]
[1751994496290,1.69531626,660.35,659.66,2.689]
[1751994496789,1.69531626,660.33,659.66,2.689]
[1751994497090,1.69531626,660.32,659.66,2.689]
[1751994497792,1.69531626,660.31,659.66,2.689]
[1751994500294,1.69531626,660.46,659.66,2.689]
[1751994500496,1.69531626,660.51,659.66,2.689]
[1751994501593,1.69531626,660.5,659.66,2.689]
[1751994502795,1.69531626,660.6,659.66,2.689]
[1751994503397,1.69531626,660.61,659.66,2.689]
[1751994503698,1.69531626,660.62,659.66,2.689]
[1751994504504,1.69531626,660.6,659.66,2.689]
[1751994505201,5.63523011,661.61,659.66,2.689]
[1751994505202,1.69531626,660.57,659.66,2.689]
[1751994505409,1.69531626,660.6,659.66,2.689]
[1751994505608,1.69531626,660.59,659.66,2.689]
[1751994506008,1.69531626,660.61,659.66,2.689]
[1751994506409,1.69531626,660.62,659.66,2.689]
[1751994506610,1.69531626,660.59,659.66,2.689]
[1751994507209,1.69531626,660.59,659.52,2.23941662]
[1751994507612,1.69531626,660.67,659.6,2.23941662]
[1751994507911,1.69531626,660.77,659.58,2.23941662]
[1751994508107,1.69531626,660.77,659.57,2.23941662]
[1751994508313,1.69531626,660.78,659.58,2.23941662]
[1751994509013,1.69531626,660.79,659.59,2.23941662]
[1751994509213,1.69531626,660.8,659.58,2.23941662]
[1751994509616,1.69531626,660.84,659.55,2.23941662]
[1751994509812,1.69531626,660.8,659.67,2.23941662]
[1751994510014,1.69531626,660.79,659.68,2.647]
[1751994510413,1.69531626,660.81,659.68,2.647]
[1751994511419,1.69531626,660.82,659.68,2.647]
[1751994511619,1.69531626,660.81,659.68,2.647]
[1751994511821,2.25409204,661.05,659.68,2.647]
[1751994511822,1.69531626,660.85,659.68,2.647]
[1751994512020,1.69531626,660.84,659.68,2.647]
[1751994512916,1.69531626,660.76,659.68,2.647]
[1751994513721,1.69531626,660.57,659.68,2.647]
[1751994513927,1.69531626,660.55,659.68,2.647]
[1751994514120,1.69531626,660.57,659.68,2.647]
[1751994514420,1.69531626,660.6,659.68,2.647]
[1751994514619,1.69531626,660.58,659.68,2.647]
[1751994514818,1.69531626,660.56,659.68,2.647]
[1751994515321,1.69531626,660.59,659.68,2.647]
[1751994516217,1.69531626,660.6,659.68,2.647]
[1751994516419,1.69531626,660.59,659.68,2.647]
[1751994516916,1.69531626,660.65,659.68,2.647]
[1751994517117,1.69531626,660.66,659.68,2.647]
[1751994517321,1.69531626,660.7,659.68,2.647]
[1751994518222,1.69531626,660.72,659.68,2.647]
[1751994518422,1.69531626,660.71,659.68,2.647]
[1751994522325,1.69531626,660.73,659.68,2.647]
[1751994522621,1.69531626,660.72,659.68,2.647]
[1751994522825,0.26345374,661.08,659.68,2.647]
[1751994522826,1.69531626,660.8,659.68,2.647]
[1751994523326,1.69531626,660.81,659.68,2.647]
[1751994523523,1.69531626,660.8,659.68,2.647]
[1751994523727,1.69531626,660.95,659.68,2.647]
[1751994524222,1.69531626,660.94,659.68,2.647]
[1751994525524,1.69531626,660.93,659.68,2.647]
[1751994526225,1.69531626,660.94,659.68,2.647]
[1751994527229,1.69531626,660.95,659.68,2.647]
[1751994527428,1.69531626,660.94,659.68,2.647]
[1751994528528,1.69531626,660.93,659.68,2.647]
[1751994529125,1.69531626,660.89,659.68,2.647]
[1751994529429,1.69531626,660.76,659.77,2.23941662]
[1751994529630,1.69531626,660.72,659.74,2.23941662]
[1751994530131,1.69531626,660.71,659.74,2.23941662]
[1751994530330,1.69531626,660.71,659.76,2.23941662]
[1751994530930,1.69531626,660.72,659.76,2.23941662]
[1751994531131,1.69531626,660.72,659.78,2.23941662]
[1751994531331,1.69531626,660.72,659.8,2.23941662]
[1751994531527,1.69531626,660.71,659.79,2.23941662]
[1751994532230,1.69531626,660.72,659.77,2.23941662]
[1751994532432,1.69531626,660.71,659.76,2.23941662]
[1751994532829,1.69531626,660.69,659.68,2.647]
[1751994533332,1.69531626,660.68,659.68,2.647]
[1751994533832,1.69531626,660.72,659.68,2.647]
[1751994534636,1.69531626,660.7,659.68,2.647]
[1751994534832,1.69531626,660.68,659.68,2.647]
[1751994536535,1.69531626,660.67,659.68,2.647]
[1751994536833,1.69531626,660.66,659.68,2.647]
[1751994538235,1.69531626,660.65,659.68,2.647]
[1751994538635,1.69531626,660.58,659.68,2.647]
[1751994539437,1.69531626,660.56,659.68,2.647]
[1751994539937,1.69531626,660.53,659.68,2.647]
[1751994541039,1.69531626,660.56,659.68,2.647]
[1751994541735,3.38113806,660.86,659.68,2.647]
[1751994541736,1.69531626,660.57,659.68,2.647]
[1751994541940,1.69531626,660.56,659.68,2.647]
[1751994542238,1.69531626,660.63,659.68,2.647]
[1751994542641,1.69531626,660.74,659.76,2.23941662]
[1751994542939,1.69531626,660.76,659.78,2.23941662]
[1751994544341,1.69531626,660.75,659.77,2.23941662]
[1751994545738,1.69531626,660.76,659.78,2.23941662]
[1751994545942,1.69531626,660.77,659.79,2.23941662]
[1751994546140,1.69531626,660.78,659.78,2.23941662]
[1751994546340,1.69531626,660.78,659.77,2.23941662]
[1751994547937,1.69531626,660.78,659.78,2.23941662]
[1751994548736,1.69531626,660.78,659.77,2.23941662]
[1751994548940,1.69531626,660.77,659.79,2.23941662]
[1751994549541,0.26341884,661.19,659.68,2.647]
[1751994549542,1.69531626,660.76,659.81,2.23941662]
[1751994550341,1.69531626,660.76,659.82,2.23941662]
[1751994550739,1.69531626,660.76,659.81,2.23941662]
[1751994551043,1.69531626,660.77,659.81,2.23941662]
[1751994552240,1.69531626,660.76,659.81,2.23941662]
[1751994552544,1.69531626,660.77,659.82,2.23941662]
[1751994552745,1.69531626,660.77,659.81,2.23941662]
[1751994552944,1.69531626,660.78,659.82,2.23941662]
[1751994553142,1.69531626,660.77,659.82,2.23941662]
[1751994553946,1.69531626,660.77,659.84,2.23941662]
[1751994554345,1.69531626,660.77,659.39,0.26345374]
[1751994554346,1.69531626,660.76,659.85,2.23941662]
[1751994554542,1.69531626,660.76,659.85,4.30241662]
[1751994555147,1.69531626,660.76,659.86,2.23941662]
[1751994555946,1.69531626,660.76,659.87,2.23941662]
[1751994556143,1.69531626,660.76,659.88,2.23941662]
[1751994557247,1.69531626,660.76,659.89,2.23941662]
[1751994557543,1.69531626,660.73,659.94,2.23941662]
[1751994558246,1.69531626,660.73,659.96,2.23941662]
[1751994558547,1.69531626,660.75,659.92,2.23941662]
[1751994558746,1.69531626,660.75,659.91,2.23941662]
[1751994559249,1.69531626,660.75,659.93,2.23941662]
[1751994560148,1.69531626,660.74,659.94,2.23941662]
[1751994560645,1.69531626,660.74,659.85,2.063]
[1751994560646,1.69531626,660.74,659.95,2.23941662]
[1751994561245,1.69531626,660.8,659.85,2.063]
[1751994561444,1.69531626,660.74,659.85,2.063]
[1751994562850,1.69531626,660.69,659.85,2.063]
[1751994564249,1.69531626,660.68,659.85,2.063]
[1751994566153,1.69531626,660.67,659.85,2.063]
[1751994566754,1.69531626,660.71,659.85,2.063]
[1751994567156,1.69531626,660.64,659.95,2.23941662]
[1751994569259,1.69531626,660.64,659.96,2.23941662]
[1751994572563,1.69531626,660.63,660.0,2.23941662]
[1751994572964,1.69531626,660.63,660.01,2.23941662]
[1751994573763,1.69531626,660.68,660.05,2.23941662]
[1751994574164,1.69531626,660.67,660.05,2.23941662]
[1751994575772,1.69531626,660.7,659.99,2.23941662]
[1751994578668,1.69531626,660.7,660.0,2.23941662]
[1751994578973,1.69531626,660.7,659.99,2.23941662]